[Event "Titled Tuesday Blitz August 09 Late 2022"]
[White "Demchenko, Anton"]
[Black "Souleidis, Georgios"]
[WhiteFideId "4160258"]
[BlackFideId "4206827"]
[WhiteElo "2539"]
[BlackElo "2401"]
[Result "1-0"]
[Round "07"]
[TimeControl "180+1"]
[Date "2022.08.09"]
[WhiteClock "0:00:23"]
[BlackClock "0:00:03"]

1. e4 {[%clk 0:03:00]}  c6 {[%clk 0:02:53]} 2. d4 {[%clk 0:03:00]}  d5 {[%clk 0:02:54]} 3. e5 {[%clk 0:03:01]}  c5 {[%clk 0:02:53]} 4. dxc5 {[%clk 0:03:01]}  e6 {[%clk 0:02:53]} 5. Bd3 {[%clk 0:03:00]}  Nd7 {[%clk 0:02:52]} 6. Nf3 {[%clk 0:03:00]}  Nxc5 {[%clk 0:02:47]} 7. O-O {[%clk 0:02:58]}  Bd7 {[%clk 0:02:45]} 8. Nc3 {[%clk 0:02:54]}  Ne7 {[%clk 0:02:42]} 9. Ne2 {[%clk 0:02:49]}  Nxd3 {[%clk 0:02:39]} 10. cxd3 {[%clk 0:02:49]}  Bb5 {[%clk 0:02:26]} 11. Ned4 {[%clk 0:02:48]}  Ba6 {[%clk 0:02:26]} 12. Bg5 {[%clk 0:02:42]}  Qd7 {[%clk 0:02:22]} 13. Rc1 {[%clk 0:02:34]}  Nc6 {[%clk 0:02:19]} 14. Nxc6 {[%clk 0:02:17]}  bxc6 {[%clk 0:02:19]} 15. Be3 {[%clk 0:02:17]}  Be7 {[%clk 0:02:14]} 16. Bc5 {[%clk 0:02:14]}  O-O {[%clk 0:01:55]} 17. Re1 {[%clk 0:02:14]}  Rab8 {[%clk 0:01:52]} 18. b3 {[%clk 0:02:10]}  Rfc8 {[%clk 0:01:43]} 19. Re2 {[%clk 0:01:59]}  Bxc5 {[%clk 0:01:33]} 20. Rxc5 {[%clk 0:01:59]}  Rb5 {[%clk 0:01:29]} 21. Rec2 {[%clk 0:02:00]}  h6 {[%clk 0:01:07]} 22. h4 {[%clk 0:01:58]}  Rxc5 {[%clk 0:01:07]} 23. Rxc5 {[%clk 0:01:57]}  d4 {[%clk 0:00:52]} 24. Qe2 {[%clk 0:01:28]}  Rd8 {[%clk 0:00:47]} 25. Qe4 {[%clk 0:01:25]}  Qb7 {[%clk 0:00:27]} 26. Qxc6 {[%clk 0:00:51]}  Qxc6 {[%clk 0:00:25]} 27. Rxc6 {[%clk 0:00:52]}  Bxd3 {[%clk 0:00:26]} 28. Rd6 {[%clk 0:00:53]}  Rc8 {[%clk 0:00:20]} 29. Nxd4 {[%clk 0:00:47]}  Bb1 {[%clk 0:00:17]} 30. a4 {[%clk 0:00:46]}  a5 {[%clk 0:00:13]} 31. Nc6 {[%clk 0:00:45]}  Ra8 {[%clk 0:00:12]} 32. f3 {[%clk 0:00:43]}  Bc2 {[%clk 0:00:12]} 33. Nd4 {[%clk 0:00:43]}  Bg6 {[%clk 0:00:07]} 34. Kf2 {[%clk 0:00:42]}  Rb8 {[%clk 0:00:06]} 35. Ke3 {[%clk 0:00:40]}  Bb1 {[%clk 0:00:06]} 36. Kd2 {[%clk 0:00:40]}  Rc8 {[%clk 0:00:06]} 37. Nc6 {[%clk 0:00:39]}  Ra8 {[%clk 0:00:05]} 38. h5 {[%clk 0:00:36]}  g6 {[%clk 0:00:04]} 39. hxg6 {[%clk 0:00:35]}  Bxg6 {[%clk 0:00:05]} 40. Kc3 {[%clk 0:00:33]}  h5 {[%clk 0:00:05]} 41. Rd8+ {[%clk 0:00:31]}  Rxd8 {[%clk 0:00:04]} 42. Nxd8 {[%clk 0:00:32]}  h4 {[%clk 0:00:04]} 43. Nc6 {[%clk 0:00:28]}  Bh5 {[%clk 0:00:01]} 44. Nd4 {[%clk 0:00:25]}  Kf8 {[%clk 0:00:01]} 45. b4 {[%clk 0:00:25]}  axb4+ {[%clk 0:00:02]} 46. Kxb4 {[%clk 0:00:26]}  Ke7 {[%clk 0:00:02]} 47. a5 {[%clk 0:00:26]}  Kd7 {[%clk 0:00:03]} 48. Kc5 {[%clk 0:00:23]}  Kc7 {[%clk 0:00:03]} 49. a6 {[%clk 0:00:23]}  Bg6 {[%clk 0:00:03]} 50. Nb5+ {[%clk 0:00:22]}  Kb8 {[%clk 0:00:03]} 51. Kb6 {[%clk 0:00:23]} 1-0


[Site "https://www.chess.com"]

[Event "Titled Tuesday Blitz August 09 Late 2022"]
[White "Goncalves, Davi Sulzbacher"]
[Black "Riehle, Marco"]
[WhiteFideId "2154510"]
[BlackFideId "12904392"]
[WhiteElo "2107"]
[BlackElo "2462"]
[Result "0-1"]
[Round "07"]
[TimeControl "180+1"]
[Date "2022.08.09"]
[WhiteClock "0:00:17"]
[BlackClock "0:02:23"]

1. d4 {[%clk 0:03:00]}  d5 {[%clk 0:02:59]} 2. c4 {[%clk 0:03:00]}  e6 {[%clk 0:02:59]} 3. Nf3 {[%clk 0:03:00]}  Nf6 {[%clk 0:02:58]} 4. g3 {[%clk 0:03:01]}  dxc4 {[%clk 0:02:57]} 5. Bg2 {[%clk 0:03:01]}  Bb4+ {[%clk 0:02:55]} 6. Bd2 {[%clk 0:02:57]}  a5 {[%clk 0:02:55]} 7. O-O {[%clk 0:02:57]}  O-O {[%clk 0:02:53]} 8. Bg5 {[%clk 0:02:52]}  h6 {[%clk 0:02:52]} 9. Bxf6 {[%clk 0:02:51]}  Qxf6 {[%clk 0:02:53]} 10. e4 {[%clk 0:02:50]}  b5 {[%clk 0:02:53]} 11. Qc2 {[%clk 0:02:45]}  Bb7 {[%clk 0:02:49]} 12. e5 {[%clk 0:02:27]}  Qg6 {[%clk 0:02:46]} 13. Qxg6 {[%clk 0:02:23]}  fxg6 {[%clk 0:02:47]} 14. a4 {[%clk 0:02:22]}  Bxf3 {[%clk 0:02:45]} 15. Bxf3 {[%clk 0:01:55]}  Rxf3 {[%clk 0:02:46]} 16. axb5 {[%clk 0:01:55]}  Rb3 {[%clk 0:02:43]} 17. Rc1 {[%clk 0:01:45]}  Rxb2 {[%clk 0:02:41]} 18. Rxc4 {[%clk 0:01:45]}  Nd7 {[%clk 0:02:39]} 19. Rxc7 {[%clk 0:01:36]}  Nb6 {[%clk 0:02:40]} 20. Rc6 {[%clk 0:01:22]}  Nd5 {[%clk 0:02:39]} 21. Rxe6 {[%clk 0:01:00]}  Rf8 {[%clk 0:02:37]} 22. f4 {[%clk 0:00:53]}  g5 {[%clk 0:02:36]} 23. Na3 {[%clk 0:00:37]}  gxf4 {[%clk 0:02:29]} 24. Nc4 {[%clk 0:00:36]}  Rc2 {[%clk 0:02:29]} 25. Nxa5 {[%clk 0:00:30]}  fxg3 {[%clk 0:02:29]} 26. Nc6 {[%clk 0:00:27]}  Rff2 {[%clk 0:02:23]} 27. hxg3 {[%clk 0:00:16]}  Rg2+ {[%clk 0:02:23]} 28. Kh1 {[%clk 0:00:17]}  Rh2+ {[%clk 0:02:23]} 0-1


[Site "https://www.chess.com"]

[Event "Titled Tuesday Blitz August 09 Late 2022"]
[White "Grischuk, Alexander"]
[Black "Babazada, Khazar"]
[WhiteFideId "4126025"]
[BlackFideId "13413554"]
[WhiteElo "2762"]
[BlackElo "2409"]
[Result "1-0"]
[Round "07"]
[TimeControl "180+1"]
[Date "2022.08.09"]
[WhiteClock "0:00:13"]
[BlackClock "0:00:04"]

1. d4 {[%clk 0:03:00]}  Nf6 {[%clk 0:03:00]} 2. c4 {[%clk 0:03:00]}  g6 {[%clk 0:02:58]} 3. Nc3 {[%clk 0:03:00]}  Bg7 {[%clk 0:02:59]} 4. e4 {[%clk 0:03:00]}  d6 {[%clk 0:03:00]} 5. Be2 {[%clk 0:03:00]}  O-O {[%clk 0:03:00]} 6. Be3 {[%clk 0:03:01]}  e5 {[%clk 0:02:58]} 7. d5 {[%clk 0:03:01]}  a5 {[%clk 0:02:58]} 8. h4 {[%clk 0:03:01]}  h5 {[%clk 0:02:58]} 9. f3 {[%clk 0:03:00]}  Na6 {[%clk 0:02:54]} 10. Nh3 {[%clk 0:02:59]}  Nc5 {[%clk 0:02:54]} 11. Nf2 {[%clk 0:02:51]}  c6 {[%clk 0:02:54]} 12. g3 {[%clk 0:02:39]}  cxd5 {[%clk 0:02:53]} 13. cxd5 {[%clk 0:02:39]}  a4 {[%clk 0:02:52]} 14. Kf1 {[%clk 0:02:34]}  Bd7 {[%clk 0:02:44]} 15. Kg2 {[%clk 0:02:01]}  Qa5 {[%clk 0:02:43]} 16. Nd3 {[%clk 0:01:50]}  Nxd3 {[%clk 0:02:41]} 17. Qxd3 {[%clk 0:01:51]}  Rfc8 {[%clk 0:02:41]} 18. Rab1 {[%clk 0:01:42]}  b5 {[%clk 0:01:59]} 19. Nxb5 {[%clk 0:01:40]}  Bxb5 {[%clk 0:00:51]} 20. Qxb5 {[%clk 0:01:41]}  Qxb5 {[%clk 0:00:48]} 21. Bxb5 {[%clk 0:01:42]}  Rc2+ {[%clk 0:00:49]} 22. Kh3 {[%clk 0:01:41]}  Rb8 {[%clk 0:00:46]} 23. Bxa4 {[%clk 0:01:36]}  Rcxb2 {[%clk 0:00:47]} 24. Rxb2 {[%clk 0:01:27]}  Rxb2 {[%clk 0:00:48]} 25. Rh2 {[%clk 0:01:24]}  Rb1 {[%clk 0:00:41]} 26. Rc2 {[%clk 0:01:23]}  Rb4 {[%clk 0:00:33]} 27. Bc6 {[%clk 0:01:15]}  Bf8 {[%clk 0:00:31]} 28. a4 {[%clk 0:01:12]}  Rb3 {[%clk 0:00:31]} 29. Bg5 {[%clk 0:01:01]}  Nh7 {[%clk 0:00:27]} 30. Ra2 {[%clk 0:00:56]}  Nxg5+ {[%clk 0:00:16]} 31. hxg5 {[%clk 0:00:57]}  Be7 {[%clk 0:00:17]} 32. a5 {[%clk 0:00:56]}  Bxg5 {[%clk 0:00:16]} 33. a6 {[%clk 0:00:55]}  Be3 {[%clk 0:00:17]} 34. a7 {[%clk 0:00:55]}  Bxa7 {[%clk 0:00:17]} 35. Rxa7 {[%clk 0:00:56]}  Rxf3 {[%clk 0:00:18]} 36. Kg2 {[%clk 0:00:45]}  Rf6 {[%clk 0:00:17]} 37. Bd7 {[%clk 0:00:27]}  Kf8 {[%clk 0:00:14]} 38. Rb7 {[%clk 0:00:25]}  Kg7 {[%clk 0:00:14]} 39. Bh3 {[%clk 0:00:25]}  Kh6 {[%clk 0:00:14]} 40. Bd7 {[%clk 0:00:18]}  Kg7 {[%clk 0:00:14]} 41. Be8 {[%clk 0:00:15]}  Kf8 {[%clk 0:00:14]} 42. Rb8 {[%clk 0:00:15]}  Kg7 {[%clk 0:00:14]} 43. Rd8 {[%clk 0:00:15]}  Kf8 {[%clk 0:00:10]} 44. Bb5+ {[%clk 0:00:15]}  Kg7 {[%clk 0:00:10]} 45. Be2 {[%clk 0:00:15]}  Kh6 {[%clk 0:00:10]} 46. Bf3 {[%clk 0:00:12]}  Kg5 {[%clk 0:00:10]} 47. Rh8 {[%clk 0:00:12]}  h4 {[%clk 0:00:04]} 48. Rxh4 {[%clk 0:00:13]} 1-0


[Site "https://www.chess.com"]

[Event "Titled Tuesday Blitz August 09 Late 2022"]
[White "Hafiz, Arif Abdul"]
[Black "Ardila, Oscar Humberto"]
[WhiteFideId "7104227"]
[BlackFideId "4404742"]
[WhiteElo "2198"]
[BlackElo "1939"]
[Result "1-0"]
[Round "07"]
[TimeControl "180+1"]
[Date "2022.08.09"]
[WhiteClock "0:02:27"]
[BlackClock "0:02:13"]

1. e4 {[%clk 0:03:00]}  e5 {[%clk 0:02:59]} 2. Nc3 {[%clk 0:03:00]}  Nf6 {[%clk 0:03:00]} 3. f4 {[%clk 0:03:00]}  d6 {[%clk 0:02:58]} 4. Nf3 {[%clk 0:02:59]}  Bg4 {[%clk 0:02:58]} 5. Bc4 {[%clk 0:02:58]}  Be7 {[%clk 0:02:56]} 6. fxe5 {[%clk 0:02:57]}  dxe5 {[%clk 0:02:56]} 7. Bxf7+ {[%clk 0:02:58]}  Kf8 {[%clk 0:02:52]} 8. Bb3 {[%clk 0:02:57]}  Nc6 {[%clk 0:02:51]} 9. h3 {[%clk 0:02:56]}  Bh5 {[%clk 0:02:51]} 10. g4 {[%clk 0:02:54]}  Bg6 {[%clk 0:02:41]} 11. d3 {[%clk 0:02:50]}  Qd7 {[%clk 0:02:37]} 12. Be3 {[%clk 0:02:46]}  Nd4 {[%clk 0:02:27]} 13. Nxe5 {[%clk 0:02:39]}  Qd6 {[%clk 0:02:27]} 14. Bf4 {[%clk 0:02:38]}  Qb6 {[%clk 0:02:16]} 15. g5 {[%clk 0:02:27]}  Nh5 {[%clk 0:02:13]} 16. Nd7+ {[%clk 0:02:27]} 1-0


[Site "https://www.chess.com"]

[Event "Titled Tuesday Blitz August 09 Late 2022"]
[White "Hakobyan, Aram"]
[Black "Sarana, Alexey"]
[WhiteFideId "13306677"]
[BlackFideId "24133795"]
[WhiteElo "2557"]
[BlackElo "2666"]
[Result "0-1"]
[Round "07"]
[TimeControl "180+1"]
[Date "2022.08.09"]
[WhiteClock "0:00:06"]
[BlackClock "0:00:10"]

1. d4 {[%clk 0:02:59]}  Nf6 {[%clk 0:02:59]} 2. c4 {[%clk 0:03:00]}  e6 {[%clk 0:03:00]} 3. a3 {[%clk 0:03:01]}  d5 {[%clk 0:03:00]} 4. cxd5 {[%clk 0:03:02]}  exd5 {[%clk 0:03:00]} 5. Nc3 {[%clk 0:03:02]}  c6 {[%clk 0:02:59]} 6. Bf4 {[%clk 0:03:03]}  Bf5 {[%clk 0:02:59]} 7. e3 {[%clk 0:03:03]}  Bd6 {[%clk 0:02:59]} 8. Bxd6 {[%clk 0:03:03]}  Qxd6 {[%clk 0:03:00]} 9. Qf3 {[%clk 0:03:04]}  Bg6 {[%clk 0:02:53]} 10. h4 {[%clk 0:03:04]}  Bh5 {[%clk 0:02:50]} 11. Qf4 {[%clk 0:03:04]}  Qxf4 {[%clk 0:02:42]} 12. exf4 {[%clk 0:03:05]}  Ne4 {[%clk 0:02:43]} 13. Bd3 {[%clk 0:02:54]}  f5 {[%clk 0:02:38]} 14. f3 {[%clk 0:02:53]}  Nd6 {[%clk 0:02:32]} 15. Nge2 {[%clk 0:02:52]}  O-O {[%clk 0:02:32]} 16. Kf2 {[%clk 0:02:49]}  Nd7 {[%clk 0:02:30]} 17. Rhe1 {[%clk 0:02:46]}  Bf7 {[%clk 0:02:23]} 18. Ng3 {[%clk 0:02:29]}  g6 {[%clk 0:02:23]} 19. Re7 {[%clk 0:02:28]}  Rad8 {[%clk 0:02:22]} 20. Rae1 {[%clk 0:02:24]}  Rfe8 {[%clk 0:02:22]} 21. Rxe8+ {[%clk 0:02:10]}  Rxe8 {[%clk 0:02:18]} 22. Rd1 {[%clk 0:02:11]}  Nf8 {[%clk 0:02:15]} 23. Nge2 {[%clk 0:02:10]}  h5 {[%clk 0:02:13]} 24. g3 {[%clk 0:02:10]}  Ne6 {[%clk 0:02:12]} 25. b3 {[%clk 0:02:10]}  Kg7 {[%clk 0:02:10]} 26. Bc2 {[%clk 0:02:09]}  Rc8 {[%clk 0:02:08]} 27. Ke3 {[%clk 0:02:03]}  b6 {[%clk 0:02:01]} 28. Bd3 {[%clk 0:01:56]}  Re8 {[%clk 0:01:44]} 29. Kf2 {[%clk 0:01:49]}  Rc8 {[%clk 0:01:33]} 30. Ba6 {[%clk 0:01:48]}  Rc7 {[%clk 0:01:33]} 31. Nc1 {[%clk 0:01:44]}  Re7 {[%clk 0:01:27]} 32. Bf1 {[%clk 0:01:39]}  a5 {[%clk 0:01:22]} 33. N3e2 {[%clk 0:01:37]}  Rc7 {[%clk 0:01:07]} 34. Nd3 {[%clk 0:01:31]}  Nb5 {[%clk 0:01:07]} 35. Ne5 {[%clk 0:01:26]}  Nxa3 {[%clk 0:01:06]} 36. Rc1 {[%clk 0:01:25]}  Be8 {[%clk 0:00:59]} 37. Nc3 {[%clk 0:01:18]}  Nxd4 {[%clk 0:00:39]} 38. Nxd5 {[%clk 0:01:17]}  Rb7 {[%clk 0:00:40]} 39. Ne3 {[%clk 0:01:03]}  Nxb3 {[%clk 0:00:39]} 40. Rc3 {[%clk 0:01:00]}  a4 {[%clk 0:00:39]} 41. Nxc6 {[%clk 0:00:50]}  Nb1 {[%clk 0:00:34]} 42. Rc2 {[%clk 0:00:49]}  Rc7 {[%clk 0:00:24]} 43. Nb4 {[%clk 0:00:39]}  Rxc2+ {[%clk 0:00:24]} 44. Nexc2 {[%clk 0:00:40]}  a3 {[%clk 0:00:21]} 45. Bc4 {[%clk 0:00:40]}  Bf7 {[%clk 0:00:20]} 46. Bxf7 {[%clk 0:00:39]}  Kxf7 {[%clk 0:00:21]} 47. Ke3 {[%clk 0:00:35]}  N1d2 {[%clk 0:00:20]} 48. Nxa3 {[%clk 0:00:32]}  Ke6 {[%clk 0:00:20]} 49. Nac2 {[%clk 0:00:32]}  Kd6 {[%clk 0:00:16]} 50. Nd3 {[%clk 0:00:32]}  Nc4+ {[%clk 0:00:16]} 51. Kf2 {[%clk 0:00:31]}  Kd5 {[%clk 0:00:16]} 52. Ne3+ {[%clk 0:00:31]}  Nxe3 {[%clk 0:00:15]} 53. Kxe3 {[%clk 0:00:32]}  Ke6 {[%clk 0:00:08]} 54. Ne5 {[%clk 0:00:32]}  Kf6 {[%clk 0:00:08]} 55. Nd7+ {[%clk 0:00:32]}  Kf7 {[%clk 0:00:08]} 56. Nxb6 {[%clk 0:00:33]}  Nc5 {[%clk 0:00:08]} 57. Nc4 {[%clk 0:00:34]}  Kf6 {[%clk 0:00:09]} 58. Ne5 {[%clk 0:00:34]}  Ne6 {[%clk 0:00:09]} 59. Nd3 {[%clk 0:00:35]}  Ke7 {[%clk 0:00:09]} 60. Nb2 {[%clk 0:00:34]}  Kf6 {[%clk 0:00:09]} 61. Nc4 {[%clk 0:00:34]}  Ke7 {[%clk 0:00:10]} 62. Ne5 {[%clk 0:00:34]}  Kf6 {[%clk 0:00:11]} 63. Kd3 {[%clk 0:00:35]}  Nc7 {[%clk 0:00:08]} 64. Kd4 {[%clk 0:00:34]}  Nb5+ {[%clk 0:00:08]} 65. Kc4 {[%clk 0:00:34]}  Na3+ {[%clk 0:00:07]} 66. Kd5 {[%clk 0:00:33]}  Nc2 {[%clk 0:00:07]} 67. Nc6 {[%clk 0:00:18]}  Ne3+ {[%clk 0:00:07]} 68. Kd6 {[%clk 0:00:17]}  Nf1 {[%clk 0:00:07]} 69. Ne7 {[%clk 0:00:16]}  Nxg3 {[%clk 0:00:07]} 70. Nd5+ {[%clk 0:00:17]}  Kf7 {[%clk 0:00:07]} 71. Ne3 {[%clk 0:00:17]}  Ne2 {[%clk 0:00:04]} 72. Ke5 {[%clk 0:00:11]}  Ng1 {[%clk 0:00:04]} 73. Ng2 {[%clk 0:00:09]}  Nxf3+ {[%clk 0:00:05]} 74. Kd5 {[%clk 0:00:10]}  Kf6 {[%clk 0:00:05]} 75. Kd6 {[%clk 0:00:11]}  Nd2 {[%clk 0:00:03]} 76. Kd5 {[%clk 0:00:11]}  Ne4 {[%clk 0:00:04]} 77. Kd4 {[%clk 0:00:11]}  Ke6 {[%clk 0:00:04]} 78. Ke3 {[%clk 0:00:12]}  Nf6 {[%clk 0:00:04]} 79. Ne1 {[%clk 0:00:12]}  Kd5 {[%clk 0:00:04]} 80. Nd3 {[%clk 0:00:11]}  Ng4+ {[%clk 0:00:04]} 81. Kf3 {[%clk 0:00:12]}  Kd4 {[%clk 0:00:05]} 82. Nb4 {[%clk 0:00:13]}  Kc5 {[%clk 0:00:04]} 83. Nd3+ {[%clk 0:00:13]}  Kd5 {[%clk 0:00:05]} 84. Nb4+ {[%clk 0:00:13]}  Kd6 {[%clk 0:00:06]} 85. Nd3 {[%clk 0:00:14]}  Ke6 {[%clk 0:00:05]} 86. Nb4 {[%clk 0:00:14]}  Nf6 {[%clk 0:00:05]} 87. Nd3 {[%clk 0:00:14]}  Nd7 {[%clk 0:00:06]} 88. Ke3 {[%clk 0:00:14]}  Kd5 {[%clk 0:00:06]} 89. Nb4+ {[%clk 0:00:12]}  Kc5 {[%clk 0:00:06]} 90. Nd3+ {[%clk 0:00:12]}  Kc4 {[%clk 0:00:06]} 91. Ne1 {[%clk 0:00:11]}  Nb6 {[%clk 0:00:06]} 92. Kf3 {[%clk 0:00:03]}  Nd5 {[%clk 0:00:06]} 93. Ng2 {[%clk 0:00:03]}  Kd3 {[%clk 0:00:05]} 94. Ne1+ {[%clk 0:00:03]}  Kd2 {[%clk 0:00:05]} 95. Ng2 {[%clk 0:00:04]}  Kd3 {[%clk 0:00:05]} 96. Ne1+ {[%clk 0:00:04]}  Kc3 {[%clk 0:00:05]} 97. Ng2 {[%clk 0:00:05]}  Kd2 {[%clk 0:00:06]} 98. Kf2 {[%clk 0:00:05]}  Kd3 {[%clk 0:00:06]} 99. Kf3 {[%clk 0:00:06]}  Kd4 {[%clk 0:00:07]} 100. Ne1 {[%clk 0:00:06]}  Nb4 {[%clk 0:00:07]} 101. Ng2 {[%clk 0:00:06]}  Nc2 {[%clk 0:00:07]} 102. Kf2 {[%clk 0:00:01]}  Ke4 {[%clk 0:00:07]} 103. Kg3 {[%clk 0:00:02]}  Nd4 {[%clk 0:00:07]} 104. Ne1 {[%clk 0:00:03]}  Ne2+ {[%clk 0:00:07]} 105. Kf2 {[%clk 0:00:03]}  Nxf4 {[%clk 0:00:08]} 106. Nf3 {[%clk 0:00:04]}  Nd3+ {[%clk 0:00:08]} 107. Kg3 {[%clk 0:00:05]}  f4+ {[%clk 0:00:08]} 108. Kg2 {[%clk 0:00:06]}  Ne5 {[%clk 0:00:09]} 109. Ng5+ {[%clk 0:00:06]}  Kf5 {[%clk 0:00:09]} 110. Kh3 {[%clk 0:00:07]}  Nc4 {[%clk 0:00:08]} 111. Nf3 {[%clk 0:00:07]}  Nd6 {[%clk 0:00:07]} 112. Nd4+ {[%clk 0:00:06]}  Ke5 {[%clk 0:00:07]} 113. Nf3+ {[%clk 0:00:05]}  Ke4 {[%clk 0:00:08]} 114. Ng5+ {[%clk 0:00:05]}  Ke3 {[%clk 0:00:08]} 115. Kg2 {[%clk 0:00:05]}  Nf5 {[%clk 0:00:08]} 116. Nf3 {[%clk 0:00:05]}  Nd4 {[%clk 0:00:07]} 117. Ne5 {[%clk 0:00:06]}  f3+ {[%clk 0:00:07]} 118. Kf1 {[%clk 0:00:06]}  Nf5 {[%clk 0:00:07]} 119. Nxg6 {[%clk 0:00:06]}  Ng3+ {[%clk 0:00:07]} 120. Kg1 {[%clk 0:00:05]}  f2+ {[%clk 0:00:08]} 121. Kg2 {[%clk 0:00:05]}  f1=Q+ {[%clk 0:00:08]} 122. Kxg3 {[%clk 0:00:06]}  Qg1+ {[%clk 0:00:09]} 123. Kh3 {[%clk 0:00:06]}  Qxg6 {[%clk 0:00:10]} 0-1


[Site "https://www.chess.com"]

[Event "Titled Tuesday Blitz August 09 Late 2022"]
[White "Harshavardhan G B"]
[Black "Rosen, Eric"]
[WhiteFideId "25059009"]
[BlackFideId "2032562"]
[WhiteElo "1890"]
[BlackElo "2362"]
[Result "0-1"]
[Round "07"]
[TimeControl "180+1"]
[Date "2022.08.09"]
[WhiteClock "0:00:02"]
[BlackClock "0:00:03"]

1. d4 {[%clk 0:03:00]}  d5 {[%clk 0:02:54]} 2. c4 {[%clk 0:02:59]}  e6 {[%clk 0:02:54]} 3. Nc3 {[%clk 0:02:59]}  Nf6 {[%clk 0:02:55]} 4. cxd5 {[%clk 0:02:57]}  exd5 {[%clk 0:02:56]} 5. Bg5 {[%clk 0:02:56]}  c6 {[%clk 0:02:56]} 6. e3 {[%clk 0:02:55]}  h6 {[%clk 0:02:56]} 7. Bh4 {[%clk 0:02:54]}  Bf5 {[%clk 0:02:56]} 8. Qf3 {[%clk 0:02:52]}  Bh7 {[%clk 0:02:56]} 9. Bxf6 {[%clk 0:02:50]}  Qxf6 {[%clk 0:02:57]} 10. Qxf6 {[%clk 0:02:50]}  gxf6 {[%clk 0:02:57]} 11. Nce2 {[%clk 0:02:49]}  Nd7 {[%clk 0:02:56]} 12. Nf3 {[%clk 0:02:47]}  a5 {[%clk 0:02:51]} 13. Ng3 {[%clk 0:02:46]}  Bb4+ {[%clk 0:02:45]} 14. Kd1 {[%clk 0:02:46]}  a4 {[%clk 0:02:46]} 15. a3 {[%clk 0:02:44]}  Be7 {[%clk 0:02:45]} 16. Nh4 {[%clk 0:02:44]}  Nb6 {[%clk 0:02:40]} 17. Ngf5 {[%clk 0:02:43]}  Nc4 {[%clk 0:02:38]} 18. Kc2 {[%clk 0:02:35]}  Nd6 {[%clk 0:02:00]} 19. Bd3 {[%clk 0:02:34]}  Kd7 {[%clk 0:01:56]} 20. g4 {[%clk 0:02:17]}  h5 {[%clk 0:01:50]} 21. h3 {[%clk 0:01:58]}  Rag8 {[%clk 0:01:46]} 22. Rag1 {[%clk 0:01:56]}  Ke6 {[%clk 0:01:41]} 23. Nxd6 {[%clk 0:01:52]}  Bxd6 {[%clk 0:01:37]} 24. Bxh7 {[%clk 0:01:48]}  Rxh7 {[%clk 0:01:36]} 25. Nf5 {[%clk 0:01:42]}  hxg4 {[%clk 0:01:22]} 26. hxg4 {[%clk 0:01:31]}  Rxh1 {[%clk 0:01:23]} 27. Rxh1 {[%clk 0:01:31]}  Rxg4 {[%clk 0:01:23]} 28. Nh4 {[%clk 0:01:14]}  Be7 {[%clk 0:01:06]} 29. Kd3 {[%clk 0:01:11]}  b6 {[%clk 0:01:02]} 30. Nf3 {[%clk 0:01:09]}  Rg2 {[%clk 0:00:56]} 31. Ke2 {[%clk 0:01:08]}  Rg8 {[%clk 0:00:31]} 32. Rh6 {[%clk 0:00:56]}  c5 {[%clk 0:00:30]} 33. Rh5 {[%clk 0:00:53]}  c4 {[%clk 0:00:26]} 34. Ne1 {[%clk 0:00:41]}  b5 {[%clk 0:00:23]} 35. Nc2 {[%clk 0:00:39]}  Rb8 {[%clk 0:00:16]} 36. f3 {[%clk 0:00:26]}  f5 {[%clk 0:00:16]} 37. Rh6+ {[%clk 0:00:24]}  f6 {[%clk 0:00:16]} 38. Rh7 {[%clk 0:00:23]}  b4 {[%clk 0:00:15]} 39. axb4 {[%clk 0:00:23]}  Bxb4 {[%clk 0:00:16]} 40. Ra7 {[%clk 0:00:22]}  Bd6 {[%clk 0:00:15]} 41. Rxa4 {[%clk 0:00:21]}  Rxb2 {[%clk 0:00:16]} 42. Kd1 {[%clk 0:00:21]}  Rb3 {[%clk 0:00:16]} 43. Kd2 {[%clk 0:00:20]}  f4 {[%clk 0:00:16]} 44. Ke2 {[%clk 0:00:16]}  Rb2 {[%clk 0:00:15]} 45. Kd1 {[%clk 0:00:16]}  Rb1+ {[%clk 0:00:14]} 46. Ke2 {[%clk 0:00:15]}  Rb2 {[%clk 0:00:11]} 47. Kd1 {[%clk 0:00:15]}  Rb1+ {[%clk 0:00:11]} 48. Ke2 {[%clk 0:00:13]}  Rh1 {[%clk 0:00:12]} 49. Ra6 {[%clk 0:00:12]}  Rh2+ {[%clk 0:00:12]} 50. Kd1 {[%clk 0:00:12]}  Rf2 {[%clk 0:00:09]} 51. exf4 {[%clk 0:00:12]}  Rxf3 {[%clk 0:00:09]} 52. Nb4 {[%clk 0:00:09]}  Rxf4 {[%clk 0:00:06]} 53. Nc2 {[%clk 0:00:09]}  Ke7 {[%clk 0:00:06]} 54. Ke2 {[%clk 0:00:08]}  Re4+ {[%clk 0:00:05]} 55. Kf3 {[%clk 0:00:07]}  f5 {[%clk 0:00:06]} 56. Ra5 {[%clk 0:00:06]}  Ke6 {[%clk 0:00:04]} 57. Ra6 {[%clk 0:00:07]}  f4 {[%clk 0:00:04]} 58. Ra5 {[%clk 0:00:06]}  Kd7 {[%clk 0:00:02]} 59. Rxd5 {[%clk 0:00:06]}  Re6 {[%clk 0:00:02]} 60. Ra5 {[%clk 0:00:05]}  Rh6 {[%clk 0:00:02]} 61. Ra7+ {[%clk 0:00:06]}  Kc6 {[%clk 0:00:02]} 62. Ra6+ {[%clk 0:00:06]}  Kb5 {[%clk 0:00:02]} 63. Ra2 {[%clk 0:00:06]}  Rh3+ {[%clk 0:00:03]} 64. Ke4 {[%clk 0:00:06]}  Rh1 {[%clk 0:00:02]} 65. d5 {[%clk 0:00:03]}  Rc1 {[%clk 0:00:02]} 66. Nd4+ {[%clk 0:00:03]}  Kc5 {[%clk 0:00:01]} 67. Ra5+ {[%clk 0:00:04]}  Kb6 {[%clk 0:00:02]} 68. Rb5+ {[%clk 0:00:04]}  Kc7 {[%clk 0:00:02]} 69. Ne6+ {[%clk 0:00:04]}  Kd7 {[%clk 0:00:02]} 70. Rb7+ {[%clk 0:00:04]}  Kc8 {[%clk 0:00:03]} 71. Rh7 {[%clk 0:00:05]}  c3 {[%clk 0:00:03]} 72. Rh8+ {[%clk 0:00:04]}  Kb7 {[%clk 0:00:03]} 73. Rh2 {[%clk 0:00:05]}  c2 {[%clk 0:00:03]} 74. Kd3 {[%clk 0:00:04]}  f3 {[%clk 0:00:03]} 75. Nd4 {[%clk 0:00:03]}  Bxh2 {[%clk 0:00:02]} 76. Nxc2 {[%clk 0:00:02]}  Rxc2 {[%clk 0:00:02]} 77. Kxc2 {[%clk 0:00:02]}  f2 {[%clk 0:00:03]} 0-1


[Site "https://www.chess.com"]